bitfinex/quotes_BTCUSD_20241024
["timestamp","ask_amount","ask_price","bid_price","bid_amount"]
[1729805062609,0.023,68778.0,68765.0,0.290843]
[1729805062855,0.023,68778.0,68755.0,0.50449603]
[1729805062856,0.145422,68765.0,68764.0,0.22184233]
[1729805063083,0.168422,68765.0,68764.0,0.22184233]
[1729805063341,0.168422,68765.0,68764.0,0.001654]
[1729805063563,0.39861803,68765.0,68764.0,0.001654]
[1729805064200,0.023,68757.0,68756.0,0.22018833]
[1729805064632,0.145437,68758.0,68749.0,0.001644]
[1729805064849,0.145435,68760.0,68750.0,0.15050381]
[1729805065069,0.23019603,68755.0,68749.0,0.001644]
[1729805065285,0.290866,68760.0,68749.0,0.001644]
[1729805065286,0.38065003,68750.0,68749.0,0.001644]
[1729805065703,0.38065003,68750.0,68739.0,9.0]
[1729805065704,0.29093,68745.0,68739.0,9.0]
[1729805065914,0.145473,68741.0,68739.0,9.0]
[1729805066327,0.145475,68740.0,68739.0,9.0]
[1729805066539,0.290938,68743.0,68739.0,9.0]
[1729805066751,0.23019603,68750.0,68740.0,0.22018833]
[1729805067011,0.005,68753.0,68739.0,9.0]
[1729805067222,0.290906,68751.0,68739.0,9.0]
[1729805067465,0.145459,68748.0,68740.0,0.22018833]
[1729805067675,0.145458,68749.0,68740.0,0.22018833]
[1729805067890,0.023,68750.0,68740.0,0.22018833]
[1729805068116,0.023,68749.0,68739.0,9.0]
[1729805068341,0.168461,68747.0,68740.0,0.22018833]
[1729805068570,0.16847,68743.0,68739.0,9.0]
[1729805068807,0.023,68740.0,68739.0,9.0]
[1729805070017,0.023,68740.0,68739.0,9.001654]
[1729805070876,0.168475,68740.0,68739.0,9.001654]
[1729805074319,0.168475,68740.0,68739.0,8.977654]
[1729805074320,0.47843247,68740.0,68739.0,8.977654]
[1729805074778,0.43397881,68740.0,68739.0,8.977654]
[1729805075492,0.56487572,68740.0,68739.0,8.977654]
[1729805075710,0.43597881,68740.0,68739.0,8.977654]
[1729805075935,0.43397881,68740.0,68739.0,8.977654]
[1729805076148,0.43397881,68740.0,68739.0,8.953654]
[1729805076377,0.45327881,68740.0,68739.0,8.734354]
[1729805076612,0.45327881,68740.0,68739.0,8.707654]
[1729805076613,0.63048262,68740.0,68739.0,8.707654]
[1729805076833,0.47997881,68740.0,68739.0,8.707654]
[1729805077465,0.48197881,68740.0,68739.0,8.707654]
[1729805078368,0.48197881,68740.0,68739.0,8.683654]
[1729805078582,0.5248863,68740.0,68739.0,8.683654]
[1729805078795,0.75508233,68740.0,68739.0,8.683654]
[1729805079005,0.67539011,68740.0,68739.0,8.683654]
[1729805079445,0.94829027,68740.0,68739.0,8.654558]
[1729805079666,0.31097881,68740.0,68739.0,8.654558]
[1729805079920,0.31297881,68740.0,68739.0,8.654558]
[1729805080576,0.30797881,68740.0,68739.0,8.654558]
[1729805080781,0.31097881,68740.0,68739.0,8.654558]
[1729805081461,0.43397881,68740.0,68739.0,8.654558]
[1729805083764,0.43597881,68740.0,68739.0,8.654558]
[1729805086297,0.43597881,68740.0,68739.0,8.630558]
[1729805086535,0.66617484,68740.0,68739.0,8.630558]
[1729805087989,0.704134,68740.0,68739.0,8.606558]
[1729805088207,0.66617484,68740.0,68739.0,8.606558]
[1729805088420,0.81667865,68740.0,68739.0,8.606558]
[1729805088647,0.90400865,68740.0,68739.0,8.02713743]
[1729805089250,0.90400865,68740.0,68739.0,7.96894543]
[1729805089251,0.96223765,68740.0,68739.0,7.96894543]
[1729805089685,1.00019681,68740.0,68739.0,7.91075343]
[1729805089920,0.96223765,68740.0,68739.0,7.91075343]
[1729805090350,0.81173384,68740.0,68739.0,7.91075343]
[1729805090575,0.72440384,68740.0,68739.0,7.91075343]
[1729805090996,0.72440384,68740.0,68739.0,7.79436943]
[1729805091413,0.81173384,68740.0,68739.0,7.74127343]
[1729805091611,0.96483384,68740.0,68739.0,7.68308143]
[1729805091838,1.11533765,68740.0,68739.0,7.13275686]
[1729805092046,1.15329681,68740.0,68739.0,7.13275686]
[1729805092721,1.11533765,68740.0,68739.0,7.04546886]
[1729805092935,1.11533765,68740.0,68739.0,6.98727686]
[1729805093150,1.15329681,68740.0,68739.0,6.96327686]
[1729805093358,1.15329681,68740.0,68739.0,6.83007778]
[1729805093359,1.15730979,68740.0,68739.0,6.83007778]
[1729805093600,1.15730979,68740.0,68739.0,6.77188578]
[1729805093815,1.15730979,68740.0,68739.0,6.68459778]
[1729805094291,1.19960228,68740.0,68739.0,6.67757764]
[1729805094520,1.15730979,68740.0,68739.0,6.67757764]
[1729805094741,1.15730979,68740.0,68739.0,6.28954815]
[1729805094931,1.15813679,68740.0,68739.0,6.23135615]
[1729805095172,1.20042928,68740.0,68739.0,6.20226015]
[1729805095835,1.20042928,68740.0,68739.0,6.13806815]
[1729805096273,1.20042928,68740.0,68739.0,6.04478015]
[1729805096508,1.15813679,68740.0,68739.0,6.04478015]
[1729805097807,1.15813679,68740.0,68739.0,5.92839615]
[1729805098047,1.15813679,68740.0,68739.0,5.89930015]
[1729805098699,1.15813679,68740.0,68739.0,5.87020415]
[1729805098955,1.15813679,68740.0,68739.0,5.81201215]
[1729805099179,1.15813679,68740.0,68739.0,5.75382015]
[1729805100084,1.15813679,68740.0,68739.0,5.69562815]
[1729805100602,1.15813679,68740.0,68739.0,5.60834015]
[1729805100825,1.15813679,68740.0,68739.0,5.49195615]
[1729805101071,0.60223084,68740.0,68739.0,5.46286015]
[1729805101321,0.37003481,68740.0,68739.0,5.46286015]
[1729805101545,0.37203481,68740.0,68739.0,5.46286015]
[1729805101765,0.37203481,68740.0,68739.0,5.43204223]
[1729805101986,0.52253862,68740.0,68739.0,5.43204223]
[1729805102641,0.64553862,68740.0,68739.0,5.43204223]
[1729805103304,1.11616465,68740.0,68739.0,5.28656223]
[1729805103527,0.88596862,68740.0,68739.0,5.28656223]
[1729805103754,0.88596862,68740.0,68739.0,5.25746623]
[1729805103973,0.88596862,68740.0,68739.0,5.22837023]
[1729805105846,0.88596862,68740.0,68739.0,5.17017823]
[1729805106068,0.88596862,68740.0,68739.0,5.14108223]
[1729805106292,0.88596862,68740.0,68739.0,5.08289023]
[1729805106741,1.1592554,68740.0,68739.0,4.93289667]
[1729805106994,1.1592554,68740.0,68739.0,4.8923755]
[1729805107223,1.20025693,68740.0,68739.0,4.35339211]
[1729805107473,1.20025693,68740.0,68739.0,4.12802319]
[1729805107474,1.44366094,68740.0,68739.0,4.12802319]
[1729805107673,1.68168478,68740.0,68739.0,3.87648117]
[1729805107917,1.63429789,68740.0,68739.0,2.49672025]
[1729805108163,1.5920054,68740.0,68739.0,2.49672025]
[1729805108385,1.66882427,68740.0,68739.0,2.05984298]
[1729805108611,1.62653178,68740.0,68739.0,1.85655498]
[1729805108826,1.62653178,68740.0,68739.0,1.79836298]
[1729805109054,1.62653178,68740.0,68739.0,1.79136298]
[1729805109554,1.62653178,68740.0,68739.0,1.49373298]
[1729805109555,1.4726252,68740.0,68739.0,1.49373298]
[1729805109779,1.62653178,68740.0,68739.0,1.04609422]
[1729805110431,1.54129322,68740.0,68739.0,1.04609422]
[1729805110645,1.58441908,68740.0,68739.0,0.90061422]
[1729805110905,1.58441908,68740.0,68739.0,0.86242274]
[1729805111600,1.58441908,68740.0,68739.0,0.74603874]
[1729805111816,1.58441908,68740.0,68739.0,0.68174274]
[1729805112746,1.58441908,68740.0,68739.0,0.59445474]
[1729805112962,1.58441908,68740.0,68739.0,0.53626274]
[1729805113313,1.58660301,68740.0,68739.0,0.53626274]
[1729805113557,1.58660301,68740.0,68739.0,0.44897474]
[1729805113985,1.58441908,68740.0,68739.0,0.39078274]
[1729805114632,1.58441908,68740.0,68739.0,0.33259074]
[1729805114835,1.58660301,68740.0,68739.0,0.24530274]
[1729805115459,1.58660301,68740.0,68739.0,0.21620674]
[1729805115669,1.58660301,68740.0,68739.0,0.15801474]
[1729805115897,1.58660301,68740.0,68739.0,0.12891874]
[1729805116091,1.58660301,68740.0,68739.0,0.09982274]
[1729805116302,1.58660301,68740.0,68739.0,0.08284837]
[1729805116516,1.58441908,68740.0,68739.0,0.02465637]
[1729805116716,1.58441908,68740.0,68739.0,3.7e-07]
[1729805117159,1.54341755,68740.0,68739.0,3.7e-07]
[1729805117596,1.54341755,68740.0,68729.0,0.00184]
[1729805117597,0.525926,68730.0,68729.0,3.7e-07]
[1729805117802,0.97293512,68730.0,68729.0,3.7e-07]
[1729805119471,0.10433,68726.0,68725.0,0.00165]
[1729805119687,0.71956467,68726.0,68725.0,0.00165]
[1729805121054,0.72174858,68726.0,68725.0,0.00165]
[1729805121253,0.87225239,68726.0,68725.0,0.00165]
[1729805121499,0.8720773,68726.0,68725.0,0.00165]
[1729805121716,0.8720773,68726.0,68725.0,0.00194]
[1729805121916,0.87459219,68726.0,68725.0,0.00194]
[1729805122559,0.52576191,68725.0,68724.0,1e-06]
[1729805122770,0.93825667,68725.0,68724.0,1e-06]
[1729805122994,0.85139625,68725.0,68724.0,1e-06]
[1729805123206,0.93837679,68725.0,68724.0,1e-06]
[1729805123660,0.85139625,68725.0,68724.0,1e-06]
[1729805124304,0.95997177,68725.0,68724.0,1e-06]
[1729805124463,0.96013358,68725.0,68724.0,1e-06]
[1729805124697,0.85139625,68725.0,68724.0,1e-06]
[1729805126764,0.71939158,68725.0,68724.0,1e-06]
[1729805127497,1.07006471,68725.0,68724.0,1e-06]
[1729805127712,0.84987638,68725.0,68724.0,1e-06]
[1729805128516,0.71939158,68725.0,68724.0,1e-06]
[1729805129404,0.76168407,68725.0,68724.0,1e-06]
[1729805129618,0.91218788,68725.0,68724.0,1e-06]
[1729805129857,0.74834751,68720.0,68719.0,1e-06]
[1729805130078,0.01682491,68713.0,68712.0,0.001644]
[1729805130288,0.94199118,68713.0,68712.0,0.001644]
[1729805130511,1.06965779,68713.0,68712.0,0.001644]
[1729805130715,1.20166246,68713.0,68712.0,0.001644]
[1729805132170,0.16236391,68710.0,68702.0,0.1877]
[1729805132396,0.71942358,68710.0,68702.0,0.1877]
[1729805132615,0.72160789,68710.0,68702.0,0.1877]
[1729805132815,0.37272291,68696.0,68691.0,0.1877]
[1729805133063,0.37272291,68696.0,68695.0,0.22183433]
[1729805133064,0.80202113,68696.0,68695.0,0.22183433]
[1729805133290,0.95512113,68696.0,68695.0,0.001646]
[1729805133513,0.95512113,68696.0,68688.0,0.22018833]
[1729805133514,0.52582991,68693.0,68688.0,0.22018833]
[1729805133741,0.52582991,68693.0,68686.0,0.001652]
[1729805133742,0.37274191,68687.0,68686.0,0.001652]
[1729805133946,0.56855653,68687.0,68686.0,0.001652]
[1729805134152,0.78782282,68687.0,68686.0,0.001652]
[1729805134358,0.93650172,68687.0,68686.0,0.001652]
[1729805134567,0.61037598,68687.0,68686.0,0.001652]
[1729805134767,0.56725012,68687.0,68686.0,0.001652]
[1729805136102,0.61258564,68687.0,68686.0,0.001652]
[1729805136556,0.56907503,68687.0,68686.0,0.001652]
[1729805136769,0.56907503,68687.0,68682.0,0.0806]
[1729805136770,0.160596,68683.0,68682.0,0.008898]
[1729805136971,0.41109981,68683.0,68682.0,0.008898]
[1729805137175,0.56507417,68683.0,68682.0,0.008898]
[1729805137649,0.59588708,68683.0,68682.0,0.008898]
[1729805138045,0.56007417,68683.0,68682.0,0.008898]
[1729805138311,0.25550381,68683.0,68682.0,0.008898]
[1729805138728,0.41109981,68683.0,68682.0,0.008898]
[1729805139214,0.25550381,68683.0,68682.0,0.197198]
[1729805139433,0.25050381,68683.0,68682.0,0.197198]
[1729805139637,0.40109981,68683.0,68682.0,0.197198]
[1729805139861,0.40609981,68683.0,68682.0,0.197198]
[1729805140082,0.40109981,68683.0,68682.0,0.197198]
[1729805140734,0.39609981,68683.0,68682.0,0.197198]
[1729805141154,0.25050381,68683.0,68682.0,0.197198]
[1729805141367,0.39609981,68683.0,68682.0,0.198852]
[1729805141799,0.25050381,68683.0,68682.0,0.198852]
[1729805142009,0.1,68685.0,68683.0,0.0796]
[1729805142188,0.29836395,68687.0,68683.0,0.0796]
[1729805142425,0.15050381,68686.0,68683.0,0.0796]
[1729805142633,0.29609481,68686.0,68683.0,0.0796]
[1729805142815,0.145592,68685.0,68683.0,0.0796]
[1729805143087,0.145594,68685.0,68683.0,0.0796]
[1729805143301,0.00218495,68687.0,68683.0,0.0796]
[1729805143518,0.14777295,68687.0,68685.0,0.0796]
[1729805143725,0.00218495,68687.0,68685.0,0.0796]
[1729805144241,0.10218495,68687.0,68685.0,0.0796]
[1729805144485,0.36599803,68686.0,68685.0,0.0796]
[1729805144691,0.36599803,68686.0,68684.0,0.1883]
[1729805144692,0.025,68700.0,68697.0,0.2679]
[1729805144906,0.22018833,68698.0,68697.0,0.2679]
[1729805145119,0.025,68700.0,68697.0,0.2679]
[1729805145348,0.291125,68699.0,68697.0,0.2679]
[1729805145565,0.025,68700.0,68697.0,0.2679]
[1729805145566,0.145564,68698.0,68697.0,0.2679]
[1729805146251,0.30106781,68698.0,68697.0,0.2679]
[1729805146738,0.40106781,68698.0,68697.0,0.2679]
[1729805147137,0.40289272,68698.0,68697.0,0.2679]
[1729805147361,0.40106781,68698.0,68697.0,0.2679]
[1729805148727,0.53030273,68698.0,68697.0,0.0796]
[1729805149420,0.260583,68689.0,68688.0,0.2679]
[1729805150115,0.41108681,68689.0,68688.0,0.2679]
[1729805153887,0.00218409,68689.0,68688.0,0.42204945]
[1729805154115,0.000827,68699.0,68695.0,0.15397436]
[1729805154116,0.22101533,68699.0,68695.0,0.15397436]
[1729805154385,0.22101533,68699.0,68697.0,0.0796]
[1729805154614,0.22101533,68699.0,68695.0,0.15397436]
[1729805154615,0.000827,68699.0,68698.0,0.1934]
[1729805154795,0.000827,68699.0,68698.0,0.273]
[1729805158362,0.01171942,68699.0,68698.0,0.273]
[1729805158817,0.000827,68699.0,68698.0,0.273]
[1729805162073,0.000827,68699.0,68698.0,0.27317509]
[1729805162274,0.000827,68699.0,68698.0,0.273]
[1729805163980,0.01171967,68699.0,68698.0,0.273]
[1729805164655,0.000827,68699.0,68698.0,0.273]
[1729805166545,0.000827,68699.0,68698.0,0.263]
[1729805167512,0.00218431,68710.0,68707.0,0.0796]
[1729805167738,0.00218431,68710.0,68708.0,0.15050381]
[1729805168385,0.146346,68720.0,68708.0,0.15050381]
[1729805168386,0.000827,68720.0,68709.0,0.0796]
[1729805168630,0.000827,68720.0,68713.0,0.00017509]
[1729805168863,0.000827,68720.0,68719.0,0.00017509]
[1729805169532,0.000827,68720.0,68719.0,0.19357509]
[1729805169779,0.000327,68720.0,68719.0,0.19357509]
[1729805170655,0.000327,68720.0,68719.0,0.1934]
[1729805173066,0.000327,68720.0,68719.0,0.19357509]
[1729805176192,0.000327,68720.0,68719.0,0.04357509]
[1729805176403,0.000327,68720.0,68719.0,0.0434]
[1729805177477,0.000327,68720.0,68719.0,0.04357509]
[1729805180107,0.000327,68720.0,68719.0,0.0434]
[1729805180956,0.000327,68720.0,68719.0,0.04357509]
[1729805182028,0.000327,68720.0,68714.0,0.02317509]
[1729805188453,0.000327,68720.0,68714.0,0.02482909]
[1729805191576,0.000327,68720.0,68714.0,0.001654]
[1729805191577,0.291044,68718.0,68714.0,0.001654]
[1729805191797,0.14771114,68715.0,68714.0,0.001654]
[1729805192241,0.40321495,68715.0,68714.0,0.001654]
[1729805192467,0.77653906,68715.0,68714.0,0.001654]
[1729805192710,0.78853906,68715.0,68714.0,0.001654]
[1729805192945,0.94203837,68715.0,68714.0,0.001654]
[1729805193163,0.94203837,68715.0,68698.0,0.22018833]
[1729805193164,0.72481022,68699.0,68698.0,0.22018833]
[1729805193372,1.02581784,68699.0,68698.0,0.22018833]
[1729805193581,0.150581,68690.0,68682.0,0.001654]
[1729805193786,0.50200892,68690.0,68682.0,0.001654]
[1729805194021,0.50200892,68690.0,68689.0,0.001654]
[1729805194449,0.55509013,68690.0,68689.0,0.001654]
[1729805194896,0.5572743,68690.0,68689.0,0.001654]
[1729805195601,0.61530079,68690.0,68689.0,0.001654]
[1729805195820,0.5582743,68690.0,68689.0,0.001654]
[1729805196044,0.5592743,68690.0,68689.0,0.001654]
[1729805196491,0.56751207,68690.0,68689.0,0.001654]
[1729805196764,0.57151207,68690.0,68689.0,0.001654]
[1729805196968,0.72260778,68690.0,68689.0,0.001654]
[1729805197205,0.80210778,68690.0,68689.0,0.001654]
[1729805197409,0.64810246,68690.0,68689.0,0.001654]
[1729805200134,0.64210246,68690.0,68689.0,0.001654]
[1729805200369,0.50300675,68690.0,68689.0,0.001654]
[1729805200589,0.42150675,68690.0,68689.0,0.001654]
[1729805201430,0.42350675,68690.0,68689.0,0.001654]
[1729805207672,0.42250675,68690.0,68689.0,0.001654]
[1729805207885,0.42350675,68690.0,68689.0,0.001654]
[1729805208136,0.51083675,68690.0,68689.0,0.001654]
[1729805208342,0.42350675,68690.0,68689.0,0.001654]
[1729805209012,0.47958491,68690.0,68689.0,0.001654]
[1729805211662,0.55898491,68690.0,68689.0,0.001654]
[1729805212132,0.58198491,68690.0,68689.0,0.001654]
[1729805212546,0.52590675,68690.0,68689.0,0.001654]
[1729805215550,0.71290675,68690.0,68689.0,0.001654]
[1729805215761,0.43960132,68683.0,68682.0,0.001654]
[1729805216009,0.59010513,68683.0,68682.0,0.001654]
[1729805216228,0.59010513,68683.0,68670.0,0.001648]
[1729805216230,0.261621,68671.0,68670.0,0.001648]
[1729805216479,0.82683215,68671.0,68670.0,0.001648]
[1729805216723,0.93895198,68671.0,68670.0,0.001648]
[1729805217219,0.79853545,68671.0,68670.0,0.001648]
[1729805218320,0.88586545,68671.0,68670.0,0.001648]
[1729805218748,1.03636926,68671.0,68670.0,0.001648]
[1729805219395,1.03836926,68671.0,68670.0,0.001648]
[1729805219877,0.88786545,68671.0,68670.0,0.001648]
[1729805220082,0.145621,68671.0,68670.0,0.001648]
[1729805220293,0.30162632,68671.0,68670.0,0.001648]
[1729805221160,0.40162632,68671.0,68670.0,0.001648]
[1729805221381,0.39962632,68671.0,68670.0,0.001648]
[1729805221825,0.92756678,68671.0,68670.0,0.001648]
[1729805222074,0.92956678,68671.0,68670.0,0.001648]
[1729805225164,1.01689678,68671.0,68670.0,0.001648]
[1729805225604,1.01689678,68671.0,68660.0,0.001648]
[1729805225605,0.262643,68661.0,68660.0,0.001648]
[1729805225833,0.56215213,68661.0,68660.0,0.001648]
[1729805226074,0.55715213,68661.0,68660.0,0.001648]
[1729805226283,0.55933744,68661.0,68660.0,0.001648]
[1729805226963,0.56933744,68661.0,68660.0,0.001648]
[1729805229432,0.56933744,68661.0,68656.0,0.001648]
[1729805229433,0.007,68657.0,68656.0,0.001648]
[1729805229659,0.72116545,68657.0,68656.0,0.001648]
[1729805230950,0.72116545,68657.0,68650.0,0.001648]
[1729805230951,0.57067464,68651.0,68650.0,0.001648]
[1729805231206,0.41116781,68651.0,68650.0,0.001648]
[1729805231650,0.40116781,68651.0,68650.0,0.001648]
[1729805232136,0.245664,68651.0,68650.0,0.001648]
[1729805234559,0.62135614,68651.0,68650.0,0.001648]
[1729805234955,0.40116781,68651.0,68650.0,0.001648]
[1729805235985,0.55617313,68651.0,68650.0,0.001648]
[1729805236418,0.40216781,68651.0,68650.0,0.001648]
[1729805236637,0.40316781,68651.0,68650.0,0.001648]
[1729805237275,0.73260313,68651.0,68650.0,0.001648]
[1729805237517,0.73260313,68651.0,68650.0,1e-06]
[1729805237518,1.05920694,68651.0,68650.0,1e-06]
[1729805237962,0.90870313,68651.0,68650.0,1e-06]
[1729805238878,0.79870896,68651.0,68650.0,1e-06]
[1729805239342,0.75560313,68651.0,68650.0,1e-06]
[1729805240050,0.77570288,68651.0,68650.0,1e-06]
[1729805240249,0.73260313,68651.0,68650.0,1e-06]
[1729805240667,0.92620376,68651.0,68650.0,1e-06]
[1729805240885,0.79869995,68651.0,68650.0,1e-06]
[1729805241126,0.73260313,68651.0,68650.0,1e-06]
[1729805241330,0.64527313,68651.0,68650.0,1e-06]
[1729805242157,0.64527313,68651.0,68631.0,0.22018833]
[1729805242158,0.349004,68646.0,68631.0,0.22018833]
[1729805242410,0.65669944,68646.0,68631.0,0.22018833]
[1729805242802,0.56936944,68646.0,68631.0,0.22018833]
[1729805243005,0.56836944,68646.0,68631.0,0.22018833]
[1729805243209,0.56936944,68646.0,68631.0,0.22018833]
[1729805243816,0.71987325,68646.0,68631.0,0.22018833]
[1729805244012,0.56936944,68646.0,68631.0,0.22018833]
[1729805244233,0.56736944,68646.0,68631.0,0.22018833]
[1729805244429,0.56936944,68646.0,68631.0,0.22018833]
[1729805244660,0.56836944,68646.0,68631.0,0.22018833]
[1729805245261,0.56836944,68646.0,68639.0,0.0768]
[1729805245262,0.41917781,68646.0,68639.0,0.0768]
[1729805245422,0.145674,68646.0,68639.0,0.0768]
[1729805245878,0.14785955,68646.0,68639.0,0.0768]
[1729805246811,0.24785955,68646.0,68639.0,0.0768]
[1729805248212,0.1457,68634.0,68633.0,0.18653242]
[1729805248440,0.1,68645.0,68633.0,0.18653242]
[1729805248441,0.145698,68635.0,68633.0,0.18653242]
[1729805248698,0.1457,68635.0,68633.0,0.18653242]
[1729805248921,0.1,68637.0,68633.0,0.18653242]
[1729805250060,0.145687,68641.0,68633.0,0.18653242]
[1729805250061,0.1,68640.0,68633.0,0.18653242]
[1729805250307,0.22018833,68643.0,68633.0,0.18653242]
[1729805250308,0.391366,68642.0,68633.0,0.18653242]
[1729805250534,0.1,68639.0,68633.0,0.18653242]
[1729805250762,0.145685,68641.0,68633.0,0.18653242]
[1729805251234,0.1,68640.0,68633.0,0.18653242]
[1729805251483,0.1,68640.0,68632.0,0.0768]
[1729805251484,0.1,68634.0,68632.0,0.0768]
[1729805251723,0.15400532,68635.0,68632.0,0.0768]
[1729805251724,0.1,68633.0,68632.0,0.0768]
[1729805251952,0.15400532,68635.0,68628.0,0.001648]
[1729805251953,0.1,68632.0,68628.0,0.001648]
[1729805252425,0.1,68630.0,68628.0,0.001648]
[1729805252680,0.00218583,68629.0,68628.0,0.001648]
[1729805254478,0.24789583,68629.0,68628.0,0.001648]
[1729805254708,0.10218583,68629.0,68628.0,0.001648]
[1729805255751,0.00218583,68629.0,68628.0,0.001648]
[1729805258731,0.10218583,68629.0,68628.0,0.001648]
[1729805259560,0.24789583,68629.0,68628.0,0.001648]
[1729805260242,0.00218583,68629.0,68628.0,0.001648]
[1729805260868,0.14789583,68629.0,68628.0,0.001648]
[1729805261287,0.24789583,68629.0,68628.0,0.001648]
[1729805261693,0.10218583,68629.0,68628.0,0.001648]
[1729805262100,0.24789583,68629.0,68628.0,0.001648]
[1729805263192,0.40190115,68629.0,68628.0,0.001648]
[1729805263418,0.55240496,68629.0,68628.0,0.001648]
[1729805263847,0.39839964,68629.0,68628.0,0.001648]
[1729805264993,0.40657636,68629.0,68628.0,0.001648]
[1729805265201,0.145729,68621.0,68616.0,0.15382238]
[1729805265447,0.14573,68620.0,68616.0,0.15382238]
[1729805266720,0.00218608,68620.0,68616.0,0.15382238]
[1729805267860,0.00643736,68619.0,68616.0,0.15382238]
[1729805269335,0.00643736,68619.0,68605.0,0.0001001]
[1729805269336,0.15400532,68617.0,68605.0,0.0001001]
[1729805269544,0.25550381,68618.0,68605.0,0.0001001]
[1729805269545,0.145759,68606.0,68605.0,0.0001001]
[1729805269776,0.145768,68602.0,68601.0,0.001648]
[1729805270461,0.1,68604.0,68601.0,0.001648]
[1729805270692,0.245764,68604.0,68601.0,0.001648]
[1729805271115,0.1,68604.0,68601.0,0.001648]
[1729805271340,0.14795262,68603.0,68601.0,0.001648]
[1729805271555,0.3267347,68602.0,68601.0,0.001648]
[1729805271770,0.47723851,68602.0,68601.0,0.001648]
[1729805271984,0.68703851,68602.0,68601.0,0.001648]
[1729805272196,0.77636851,68602.0,68601.0,0.001648]
[1729805273236,0.68903851,68602.0,68601.0,0.001648]
[1729805273445,0.69903851,68602.0,68601.0,0.001648]
[1729805273890,0.74260997,68602.0,68601.0,0.001648]
[1729805274331,0.02,68595.0,68593.0,0.0001001]
[1729805274554,0.59329213,68595.0,68593.0,0.0001001]
[1729805274985,0.9870406,68595.0,68593.0,0.0001001]
[1729805275881,0.9870406,68595.0,68587.0,0.001648]
[1729805276555,1.14104592,68595.0,68587.0,0.001648]
[1729805277235,1.14932923,68595.0,68587.0,0.001648]
[1729805277453,1.14582772,68595.0,68587.0,0.001648]
[1729805277899,0.99332391,68595.0,68587.0,0.001648]
[1729805278166,0.99432391,68595.0,68587.0,0.001648]
[1729805278832,1.07702391,68595.0,68587.0,0.001648]
[1729805282961,0.59380864,68588.0,68587.0,0.001648]
[1729805283179,0.84835081,68588.0,68587.0,0.001648]
[1729805284285,1.11185081,68588.0,68587.0,0.001648]
[1729805284518,1.01281245,68588.0,68587.0,0.001648]
[1729805284751,1.01181245,68588.0,68587.0,0.001648]
[1729805284969,1.01281245,68588.0,68587.0,0.001648]
[1729805285189,1.02122023,68588.0,68587.0,0.001648]
[1729805288239,1.10855023,68588.0,68587.0,0.001648]
[1729805288456,1.25905404,68588.0,68587.0,0.001648]
[1729805289106,1.25805404,68588.0,68587.0,0.001648]
[1729805289323,1.25905404,68588.0,68587.0,0.001648]
[1729805289528,1.25805404,68588.0,68587.0,0.001648]
[1729805289790,1.25905404,68588.0,68587.0,0.001648]
[1729805294018,0.43700356,68582.0,68581.0,0.001648]
[1729805294246,0.58750737,68582.0,68581.0,0.001648]
[1729805297403,0.58650737,68582.0,68581.0,0.001648]
[1729805297673,0.58750737,68582.0,68581.0,0.001648]
[1729805297885,0.64586437,68582.0,68581.0,0.001648]
[1729805298092,0.77786904,68582.0,68581.0,0.001648]
[1729805298321,0.86519904,68582.0,68581.0,0.001648]
[1729805298753,0.86319904,68582.0,68581.0,0.001648]
[1729805298983,0.86519904,68582.0,68581.0,0.001648]
[1729805300981,0.86419904,68582.0,68581.0,0.001648]
[1729805301767,0.86519904,68582.0,68581.0,0.001648]
[1729805301987,0.86419904,68582.0,68581.0,0.001648]
[1729805302612,0.86519904,68582.0,68581.0,0.001648]
[1729805302820,0.86419904,68582.0,68581.0,0.001648]
[1729805303011,0.86519904,68582.0,68581.0,0.001648]
[1729805303585,0.86419904,68582.0,68581.0,0.001648]
[1729805303995,0.86519904,68582.0,68581.0,0.001648]
[1729805304390,0.86419904,68582.0,68581.0,0.001648]
[1729805304594,0.7330189,68582.0,68581.0,0.001648]
[1729805306092,0.77627824,68582.0,68581.0,0.001648]
[1729805306704,0.77527824,68582.0,68581.0,0.001648]
[1729805307151,0.77527824,68582.0,68567.0,0.22018833]
[1729805307152,0.291685,68568.0,68567.0,0.22018833]
[1729805307367,0.84703413,68568.0,68567.0,0.22018833]
[1729805307474,0.1,68567.0,68558.0,0.2705]
[1729805307688,0.245847,68565.0,68558.0,0.2705]
[1729805307931,0.39635081,68565.0,68559.0,0.00165]
[1729805308341,0.3985389,68565.0,68559.0,0.00165]
[1729805310988,0.4067986,68565.0,68559.0,0.00165]
[1729805311964,0.50469496,68565.0,68559.0,0.00165]
[1729805312173,0.4067986,68565.0,68559.0,0.00165]
[1729805313648,0.4077986,68565.0,68559.0,0.00165]
[1729805314838,0.4087986,68565.0,68559.0,0.00165]
[1729805315700,0.4077986,68565.0,68559.0,0.00165]
[1729805315891,0.4067986,68565.0,68559.0,0.00165]
[1729805316560,0.4077986,68565.0,68559.0,0.00165]
[1729805317358,0.99913882,68565.0,68559.0,0.00165]
[1729805317573,0.78377502,68565.0,68559.0,0.00165]
[1729805318688,0.87138502,68565.0,68559.0,0.00165]
[1729805320974,0.95338502,68565.0,68559.0,0.00165]
[1729805321201,0.95338502,68565.0,68546.0,0.22018833]
[1729805321202,0.40489032,68547.0,68546.0,0.22018833]
[1729805321424,0.55539413,68547.0,68546.0,0.22018833]
[1729805321646,0.245902,68539.0,68533.0,0.0795]
[1729805321867,0.1,68538.0,68533.0,0.0795]
[1729805322095,0.145912,68534.0,68533.0,0.07967547]
[1729805322975,0.145912,68534.0,68533.0,0.0795]
[1729805323885,0.245912,68534.0,68533.0,0.0795]
[1729805325469,0.245915,68533.0,68532.0,0.00165]
[1729805325680,0.251955,68533.0,68532.0,0.00165]
[1729805329265,0.40245881,68533.0,68532.0,0.00165]
[1729805329909,0.39641881,68533.0,68532.0,0.00165]
[1729805331266,0.39860815,68533.0,68532.0,0.00165]
[1729805332167,0.39860815,68533.0,68523.0,0.18914]
[1729805332168,0.145934,68524.0,68523.0,0.18914]
[1729805332392,0.145934,68524.0,68519.0,0.0795]
[1729805332393,0.245942,68520.0,68519.0,0.0795]
[1729805332829,0.245944,68519.0,68511.0,0.02538621]
[1729805333054,0.291898,68517.0,68511.0,0.0180858]
[1729805333277,0.145956,68514.0,68511.0,0.0180858]
[1729805333713,0.291902,68516.0,68511.0,0.0180858]
[1729805334138,0.145959,68513.0,68511.0,0.0180858]